bitfinex/quotes_ETHUSD_20220103
["timestamp","ask_amount","ask_price","bid_price","bid_amount"]
[1641249700237,4.0140638,3767.2,3766.8,6.225359]
[1641249700442,0.66409,3767.1,3766.8,6.225359]
[1641249700638,1.66409,3767.1,3766.9,0.00170528]
[1641249700838,2.4,3766.9,3766.8,0.91414428]
[1641249701040,3.79,3766.9,3766.8,0.91414428]
[1641249701239,4.09,3766.9,3766.8,0.91414428]
[1641249701438,2.45,3766.8,3765.8,3.0604]
[1641249701639,2.45,3766.8,3766.6,0.105358]
[1641249702440,0.66412,3766.7,3766.6,0.105358]
[1641249702690,5.365143,3766.7,3766.6,0.160717]
[1641249702890,5.3462937,3766.7,3766.6,0.16242227]
[1641249703094,2.81412,3766.7,3766.6,0.16242227]
[1641249703290,2.81412,3766.7,3765.8,9.1804]
[1641249703291,0.05527773,3766.6,3765.8,9.1243]
[1641249703493,1.05416,3766.5,3765.8,9.1243]
[1641249703691,1.05416,3766.5,3765.9,0.00397896]
[1641249704092,1.35416,3766.5,3765.9,0.00397896]
[1641249704394,1.32842,3766.4,3765.9,0.00397896]
[1641249704591,4.3752787,3766.4,3765.9,0.00397896]
[1641249704791,5.3752787,3766.4,3765.9,0.10933696]
[1641249705192,5.3752787,3766.4,3766.0,0.00341054]
[1641249705394,3.16421,3766.3,3765.8,5.83412754]
[1641249705597,2.61448925,3766.2,3765.8,5.83412754]
[1641249705793,2.91448925,3766.2,3765.8,5.83412754]
[1641249706195,0.3,3766.2,3765.2,6.1762]
[1641249706439,3.87621958,3766.3,3765.2,6.1762]
[1641249706641,1.33012527,3766.3,3765.5,0.00284211]
[1641249706842,1.33012527,3766.3,3765.4,0.105359]
[1641249707045,0.66412,3766.0,3765.4,0.105359]
[1641249707245,1.32824,3766.0,3765.4,0.105359]
[1641249709446,3.87089355,3766.0,3765.4,0.105359]
[1641249709646,3.88117149,3766.0,3765.4,0.105359]
[1641249709847,1.32824,3766.0,3765.4,0.105359]
[1641249710902,2.53238775,3765.9,3765.4,0.105359]
[1641249711098,1.32824,3766.0,3765.4,0.105359]
[1641249711299,3.90630493,3766.0,3765.4,0.105359]
[1641249711498,1.32824,3766.0,3765.4,0.105359]
[1641249713700,2.5280008,3765.9,3765.4,0.105359]
[1641249713935,2.62824,3766.0,3765.4,0.105359]
[1641249714137,1.32824,3766.0,3765.4,0.105359]
[1641249715745,0.69334019,3765.9,3765.4,0.105359]
[1641249716944,0.69334019,3765.9,3765.3,0.10933696]
[1641249717344,0.69334019,3765.9,3765.4,0.00341054]
[1641249717800,0.00189783,3765.8,3765.4,0.00341054]
[1641249718000,0.00189783,3765.8,3765.4,0.10876954]
[1641249723551,2.5017847,3765.8,3765.4,0.10876954]
[1641249724055,0.00189783,3765.8,3765.4,0.10876954]
[1641249724250,0.00189783,3765.8,3765.2,6.06812754]
[1641249724451,0.00170527,3765.7,3765.2,6.06812754]
[1641249724852,0.66539685,3765.6,3765.2,6.06812754]
[1641249725495,0.66539685,3765.6,3764.8,1.1337]
[1641249725496,2.54265767,3765.5,3764.8,1.1337]
[1641249725695,3.20696767,3765.5,3764.8,1.1337]
[1641249725895,3.20696767,3765.5,3764.9,0.00284211]
[1641249726097,0.66431,3765.5,3764.9,0.00284211]
[1641249727099,3.19390753,3765.5,3764.9,0.00284211]
[1641249727301,3.19374763,3765.5,3764.9,0.00284211]
[1641249727501,3.18294632,3765.5,3764.9,0.00284211]
[1641249728101,0.66431,3765.5,3764.9,0.00284211]
[1641249728301,3.19978038,3765.5,3764.9,0.00284211]
[1641249728601,0.00185082,3765.4,3764.9,0.00284211]
[1641249729242,0.00185082,3765.4,3764.9,0.10820111]
[1641249729638,0.00185082,3765.4,3765.0,0.00227369]
[1641249733790,0.66615692,3765.4,3765.0,0.00227369]
[1641249733992,0.66431,3765.3,3765.0,0.00227369]
[1641249734191,3.19416315,3765.3,3765.0,0.00227369]
[1641249735093,0.66431,3765.3,3765.0,0.00227369]
[1641249735493,0.96431,3765.3,3765.0,0.00227369]
[1641249735694,1.26431,3765.3,3765.0,0.00227369]
[1641249736560,2.26431,3765.3,3765.0,0.00227369]
[1641249739166,0.00184501,3765.2,3765.0,0.00227369]
[1641249739367,0.66437,3765.1,3765.0,0.00227369]
[1641249739567,2.96437,3765.1,3765.0,0.00227369]
[1641249740507,2.25,3765.0,3764.9,0.105359]
[1641249741002,0.96437,3765.1,3764.9,0.105359]
[1641249741604,1.35437,3765.1,3764.9,0.105359]
[1641249741804,1.35437,3765.1,3763.9,0.0587]
[1641249741805,2.55,3764.9,3763.9,0.0587]
[1641249742007,0.69,3764.8,3763.9,0.0587]
[1641249742206,0.69,3764.8,3764.5,0.0650802]
[1641249742207,2.35451,3764.8,3764.5,0.0650802]
[1641249742408,0.3,3764.7,3764.5,0.0650802]
[1641249742604,2.99,3764.6,3764.5,0.0650802]
[1641249742810,3.29,3764.6,3764.5,0.0650802]
[1641249743009,19.89,3764.6,3764.5,0.06792232]
[1641249743209,18.2,3764.5,3763.9,0.105359]
[1641249743411,0.66455,3764.4,3763.9,0.105359]
[1641249743609,16.26455,3764.4,3764.1,0.105359]
[1641249743848,0.66455,3764.4,3764.1,0.105359]
[1641249744049,0.66455,3764.4,3764.2,0.00170527]
[1641249745453,2.94,3764.3,3764.1,0.105359]
[1641249745653,3.60459,3764.3,3763.9,0.105359]
[1641249745854,19.20459,3764.3,3763.9,0.105359]
[1641249746056,0.3,3764.2,3764.0,0.00113685]
[1641249746258,2.49,3764.1,3764.0,0.00113685]
[1641249746457,0.39,3764.1,3764.0,0.00113685]
[1641249746657,0.69,3764.1,3763.9,0.105359]
[1641249748801,16.29,3764.1,3763.9,0.105359]
[1641249749002,2.55,3764.0,3763.7,0.105359]
[1641249749200,1.0545972,3764.0,3763.7,0.105359]
[1641249749400,0.39,3764.0,3763.8,0.00113684]
[1641249749801,1.60169213,3763.9,3763.7,0.105359]
[1641249750101,4.16795248,3763.9,3763.7,0.105359]
[1641249750305,4.19215089,3763.9,3763.7,0.105359]
[1641249750701,4.85675089,3763.9,3763.7,0.105359]
[1641249751347,2.26629213,3763.9,3763.7,0.105359]
[1641249751748,17.86629213,3763.9,3763.7,5.9e-05]
[1641249752047,18.86629213,3763.9,3763.7,5.9e-05]
[1641249752247,18.86629213,3763.9,3763.6,0.105359]
[1641249752248,0.66466,3763.7,3763.6,0.105359]
[1641249752448,2.05466,3763.7,3763.6,0.105359]
[1641249752653,2.05466,3763.7,3763.6,0.10649585]
[1641249752654,2.35466,3763.7,3763.6,0.10649585]
[1641249752855,2.55,3763.6,3763.5,0.105359]
[1641249753052,3.94,3763.6,3763.5,0.105359]
[1641249753654,3.94,3763.6,3763.5,0.210718]
[1641249754255,1.39,3763.6,3763.5,0.210718]
[1641249754655,0.39,3763.6,3763.5,0.210718]
[1641249756298,2.09,3763.6,3763.5,0.210718]
[1641249756501,3.09,3763.6,3763.5,0.210718]
[1641249757299,5.75664644,3763.6,3763.5,0.210718]
[1641249758503,2.65,3763.5,3762.3,1.2308]
[1641249758703,0.66473,3763.3,3762.3,1.2308]
[1641249758948,2.93736851,3763.2,3762.8,0.00454739]
[1641249759157,1.0,3763.1,3762.8,0.00454739]
[1641249759349,0.39,3763.0,3762.8,0.00454739]
[1641249760553,0.39,3763.0,3761.9,0.0096632]
[1641249760554,1.05476,3763.0,3761.9,0.0096632]
[1641249760761,0.00158036,3762.9,3762.8,0.01328762]
[1641249760955,0.39158036,3762.9,3761.8,3.90595082]
[1641249761155,0.3,3762.8,3761.8,3.90595082]
[1641249761353,0.39,3762.7,3761.8,3.90595082]
[1641249761558,1.3548,3762.7,3761.9,0.105358]
[1641249761755,0.00397897,3762.6,3761.9,0.105358]
[1641249761955,0.39397897,3762.6,3761.9,0.105358]
[1641249762155,0.00341054,3762.5,3761.9,0.105358]
[1641249762598,0.00284212,3762.4,3761.9,0.105358]
[1641249762802,0.66770212,3762.4,3761.9,0.105358]
[1641249763002,0.9671337,3762.3,3761.9,0.105358]
[1641249763406,0.00170527,3762.2,3761.9,0.105358]
[1641249763802,0.00113685,3762.1,3761.9,0.105358]
[1641249764203,0.66655527,3762.2,3761.9,0.105358]
[1641249764604,0.00113685,3762.1,3761.9,0.105358]
[1641249766751,1.99484,3762.0,3761.9,0.105358]
[1641249768465,1.99484,3762.0,3761.8,0.105359]
[1641249768466,2.7,3761.9,3761.8,0.105359]
[1641249768659,4.09,3761.9,3761.8,6.225359]
[1641249769057,4.09,3761.9,3761.8,0.905419]
[1641249769257,4.75499,3761.9,3761.8,0.905419]
[1641249769462,2.8,3761.8,3761.5,0.06498317]
[1641249769760,2.8,3761.8,3761.6,0.00170527]
[1641249769761,2.38495,3761.7,3761.6,0.00170527]
[1641249770144,2.8,3761.6,3761.5,0.06498317]
[1641249770328,3.19,3761.6,3761.5,0.06498317]
[1641249770527,2.8,3761.5,3760.0,0.66504]
[1641249770728,2.8,3761.5,3759.8,1.2837]
[1641249770729,3.65306737,3761.4,3759.8,1.2337]
[1641249770928,3.65306737,3761.4,3760.3,0.105359]
[1641249770929,1.05507,3761.4,3760.3,0.105359]
[1641249771330,0.3,3761.3,3760.4,0.00682108]
[1641249771529,0.69279718,3761.3,3760.4,0.00682108]
[1641249771731,3.22845409,3761.3,3760.4,0.00682108]
[1641249771931,0.93399718,3761.3,3760.4,0.00682108]
[1641249772131,0.66504,3761.2,3760.4,0.00682108]
[1641249772935,1.66504,3761.2,3760.4,0.00682108]
[1641249773135,0.66504,3761.2,3760.4,0.00682108]
[1641249774749,0.39,3761.1,3760.4,0.00682108]
[1641249777059,3.94878206,3761.1,3760.4,0.00682108]
[1641249777255,1.3551138,3761.1,3760.4,0.00682108]
[1641249777914,2.3551138,3761.1,3760.4,0.00682108]
[1641249778717,3.0082138,3761.1,3760.4,0.00682108]
[1641249779116,0.66511,3761.0,3760.4,0.00682108]
[1641249779714,3.23576082,3761.0,3760.4,0.00682108]
[1641249779917,1.0,3760.9,3760.4,0.00682108]
[1641249780116,0.66513,3760.8,3760.4,0.00682108]
[1641249780315,0.3,3760.9,3760.4,0.00682108]
[1641249780516,1.0,3760.9,3760.4,0.00682108]
[1641249780714,1.96511,3761.0,3760.4,0.00682108]
[1641249781355,0.6651431,3760.9,3760.4,0.00682108]
[1641249781553,0.3,3760.8,3760.4,0.00682108]
[1641249781750,0.96516,3760.8,3760.4,0.00682108]
[1641249781951,1.96795162,3760.8,3760.4,0.00682108]
[1641249782250,1.96795162,3760.8,3760.4,2.70682108]
[1641249782655,1.96795162,3760.8,3760.5,0.00625266]
[1641249788213,21.50654026,3760.8,3760.5,0.00625266]
[1641249788614,2.75,3760.7,3759.8,1.63466633]
[1641249788848,15.6,3760.5,3759.8,1.63466633]
[1641249789051,15.6,3760.5,3759.9,0.00341054]
[1641249789252,0.66528,3760.2,3759.9,0.00341054]
[1641249789447,0.3,3760.1,3759.9,0.00341054]
[1641249789648,0.3,3760.1,3759.9,0.105359]
[1641249789847,0.66528,3760.0,3759.9,0.105359]
[1641249790248,0.96528,3760.0,3759.9,0.105359]
[1641249792706,1.35798926,3760.0,3759.9,0.105359]
[1641249792907,0.66537,3759.5,3759.1,8.83096633]
[1641249793105,0.66537,3759.5,3759.1,1.63466633]
[1641249793307,0.96537,3759.5,3759.2,0.0073895]
[1641249793606,0.66537,3759.5,3759.2,0.0073895]
[1641249794906,0.96537,3759.5,3759.2,0.0073895]
[1641249795505,0.96537,3759.5,3758.7,1.63466633]
[1641249795506,0.96537,3759.5,3759.1,0.00795793]
[1641249795706,3.54055529,3759.5,3759.1,0.00795793]
[1641249795909,0.96537,3759.5,3759.1,0.00795793]
[1641249796553,0.96537,3759.5,3759.1,0.11331693]
[1641249796754,0.96537,3759.5,3759.1,0.06331693]
[1641249797257,1.33067,3759.3,3759.1,0.06331693]
[1641249797658,1.63067,3759.3,3759.1,0.06331693]
[1641249797856,2.63067,3759.3,3759.1,0.06331693]
[1641249798660,1.33067,3759.3,3759.1,0.06331693]
[1641249802124,22.60791234,3759.2,3759.1,0.06331693]
[1641249803326,22.61052727,3759.2,3759.1,0.06331693]
[1641249804565,25.90679727,3759.2,3759.1,0.06331693]
[1641249804765,2.8,3759.1,3759.0,6.505359]
[1641249804966,3.8,3759.1,3759.0,6.505359]
[1641249805374,1.0,3759.1,3759.0,6.505359]
[1641249805770,1.0,3759.1,3759.0,6.610718]
[1641249806171,1.39,3759.1,3759.0,6.610718]
[1641249806974,4.29,3759.1,3759.0,1.076258]
[1641249807173,19.89,3759.1,3759.0,1.076258]
[1641249807609,16.9310332,3758.9,3758.7,0.06510268]
[1641249807817,3.34,3758.8,3758.7,0.06510268]
[1641249808014,4.64,3758.8,3758.7,0.06510268]
[1641249809213,7.22851074,3758.8,3758.2,1.1615]
[1641249809415,0.66553,3758.5,3758.2,1.1615]
[1641249809616,3.34,3758.4,3758.3,0.06965095]
[1641249810215,0.39,3758.4,3758.3,0.06965095]
[1641249810816,2.24,3758.4,3758.3,0.06965095]
[1641249811220,2.95,3758.3,3757.7,1.63466633]
[1641249811460,18.85969185,3758.2,3757.7,1.63466633]
[1641249811660,16.9314,3758.1,3757.8,1.63750845]
[1641249811862,3.07548814,3758.0,3757.8,1.63750845]
[1641249812063,5.75919811,3757.9,3757.8,1.63466633]
[1641249812263,19.04919811,3757.9,3757.8,1.63466633]
[1641249812463,20.04919811,3757.9,3757.6,0.105359]
[1641249812665,3.05,3757.7,3757.2,1.63466633]
[1641249812862,3.11019602,3757.6,3757.2,1.63466633]
[1641249813066,4.08639602,3757.6,3757.2,1.63466633]
[1641249813263,1.0,3757.5,3757.2,1.63466633]
[1641249813467,0.39,3757.4,3757.2,1.63466633]
[1641249813666,1.35578,3757.4,3757.2,1.63466633]
[1641249813867,1.05578,3757.4,3756.9,1.1919]
[1641249814065,3.71347965,3757.4,3756.8,1.63466633]
[1641249814266,3.70316758,3757.4,3757.0,0.00511581]
[1641249814666,1.05818247,3757.4,3757.0,0.00511581]
[1641249814867,2.4,3757.3,3756.7,1.39091898]
[1641249815121,0.66578,3756.9,3756.7,1.39091898]
[1641249815511,1.35578,3756.9,3756.7,1.39091898]
[1641249815715,15.6,3756.8,3756.6,0.210717]
[1641249816013,7.4453,3756.7,3756.6,0.105359]
[1641249816210,3.76598,3756.6,3756.5,0.897249]
[1641249816412,5.15598,3756.6,3756.5,0.883949]
[1641249816609,9.96,3756.6,3755.9,0.06510781]
[1641249816810,4.87,3756.5,3755.9,0.06510781]
[1641249817009,3.15,3756.3,3755.0,3.6692552]
[1641249817217,0.6660336,3756.1,3755.0,3.6692552]
[1641249817416,0.66608,3755.7,3755.1,0.00511581]
[1641249817616,0.66608,3755.7,3755.1,6.12511581]
[1641249817617,0.39,3755.6,3755.1,6.12511581]
[1641249818013,0.39,3755.6,3755.2,0.00454739]
[1641249818220,0.29,3755.6,3755.2,0.00454739]
[1641249818416,1.33217,3755.5,3755.2,0.00454739]
[1641249818617,0.39,3755.4,3755.2,6.12454739]
[1641249819063,0.39,3755.4,3755.3,0.00397897]
[1641249820063,0.39,3755.4,3755.2,6.12]
[1641249820261,0.39,3755.4,3755.1,0.105359]
[1641249820662,0.6662,3755.2,3755.0,0.105359]
[1641249820868,0.39,3755.1,3755.0,0.105359]
[1641249821064,0.39,3755.1,3754.2,3.1688]
[1641249821065,19.59,3755.1,3754.2,3.1688]
[1641249821269,0.6662532,3755.0,3754.6,0.06511098]
[1641249821465,15.6,3754.8,3754.6,0.06511098]
[1641249821664,4.54,3754.7,3754.6,0.06511098]
[1641249821865,3.1651,3754.6,3754.5,4.738e-05]
[1641249822066,4.8551,3754.6,3754.4,9.205e-05]
[1641249822465,4.8551,3754.6,3754.1,0.105359]
[1641249822466,15.6,3754.3,3754.1,0.105359]
[1641249822718,1.39,3754.2,3754.1,0.105359]
[1641249823019,10.06,3754.2,3754.1,0.00232108]
[1641249823219,9.3382,3754.2,3754.1,0.00232108]
[1641249823421,10.3382,3754.2,3753.3,0.00686847]
[1641249823617,0.66644,3753.8,3752.7,0.01027901]
[1641249823818,0.39,3753.7,3752.7,0.01027901]
[1641249824016,0.69,3753.7,3752.7,0.01027901]
[1641249824219,0.66637,3753.3,3752.6,0.01084743]
[1641249824419,0.39,3753.2,3752.6,0.01084743]
[1641249825018,0.39188234,3753.2,3752.6,0.01084743]
[1641249825618,0.69188234,3753.2,3752.6,0.01084743]
[1641249825922,0.39188234,3753.2,3752.6,0.01084743]
[1641249827873,0.00188234,3753.2,3752.6,0.01084743]
[1641249828071,0.00188234,3753.2,3752.7,0.66627]
[1641249828476,0.00188234,3753.2,3752.8,0.00971058]
[1641249831718,0.00188234,3753.2,3752.8,15.60971058]
[1641249832019,0.00188234,3753.2,3752.9,15.60914216]
[1641249832219,0.00188234,3753.2,3753.1,3.21244643]
[1641249832416,0.00188234,3753.2,3753.1,21.79771178]
[1641249832618,0.00108946,3754.7,3753.1,21.80571709]
[1641249832818,0.00108946,3754.7,3753.8,0.66597]
[1641249833018,0.00108946,3754.7,3753.9,2.74660382]
[1641249833218,0.00108946,3754.7,3753.9,0.01565196]
[1641249833417,0.00108946,3754.7,3754.0,0.0028895]
[1641249834063,0.00108946,3754.7,3754.2,0.66591]
[1641249834263,0.00108946,3754.7,3754.3,2.54647528]
[1641249834565,0.00108946,3754.7,3754.3,0.00118423]
[1641249836066,0.00274282,3754.7,3754.3,0.0145014]
[1641249836473,0.00274282,3754.7,3754.6,3.16235264]
[1641249837069,0.00274282,3754.7,3754.6,18.76235264]
[1641249837273,0.06544222,3756.0,3754.7,3.15]
[1641249837470,0.06544222,3756.0,3754.8,15.6]
[1641249837715,0.00682108,3755.9,3754.8,15.6]
[1641249838115,0.00625266,3755.8,3755.3,0.66572]
[1641249838516,0.00568424,3755.7,3755.5,0.01277894]
[1641249838917,0.06544222,3756.0,3755.6,2.45]
[1641249839124,4.222e-05,3756.0,3755.5,0.01277894]
[1641249839318,3.61183027,3756.8,3756.2,0.66562]
[1641249839517,0.0654404,3756.6,3756.2,0.66562]
[1641249841119,0.0654404,3756.6,3756.2,3.36562]
[1641249841360,0.00625266,3756.7,3756.3,1.33108]
[1641249841867,1.39,3757.8,3756.3,1.33108]
[1641249841868,0.00568424,3756.6,3756.3,1.33108]
[1641249842266,0.00511581,3756.5,3756.3,1.33108]
[1641249842665,0.00454739,3756.4,3756.3,1.33108]
[1641249843066,0.0119369,3756.4,3756.3,1.33108]
[1641249846417,0.0119369,3756.4,3756.3,4.44327326]
[1641249846617,0.01343565,3756.4,3756.3,4.45658405]
[1641249847021,0.01343565,3756.4,3756.3,1.35658405]
[1641249847216,0.01343565,3756.4,3756.3,3.50658405]
[1641249848417,0.01343565,3756.4,3756.3,1.35658405]
[1641249853019,3.565e-05,3756.4,3756.3,22.63727004]
[1641249853218,3.565e-05,3756.4,3756.3,22.64522797]
[1641249853619,3.61183027,3758.1,3756.4,3.1]
[1641249853820,3.61183027,3758.1,3757.4,0.66539]
[1641249854020,0.00170527,3758.0,3757.4,0.66539]
[1641249854222,0.00170527,3758.0,3757.5,0.00113685]
[1641249854422,0.00113684,3757.9,3757.5,0.00113685]
[1641249854822,0.00341054,3758.3,3757.5,0.00113685]
[1641249855224,0.00284211,3758.2,3757.5,0.00113685]
[1641249855423,0.00284211,3758.2,3757.7,0.66536]
[1641249855621,3.61183027,3758.5,3757.7,0.66536]
[1641249855622,0.00227369,3758.1,3757.7,0.66536]
[1641249856022,0.00397896,3758.4,3757.7,0.66536]
[1641249856464,0.00341054,3758.3,3757.7,0.66536]
[1641249856867,0.00284211,3758.2,3757.7,0.66536]
[1641249857265,0.00227369,3758.1,3757.8,0.01330494]
[1641249860614,0.00227369,3758.1,3757.8,2.71330494]
[1641249862619,5.0,3758.0,3757.8,2.71330494]
[1641249863018,0.00113684,3757.9,3757.8,2.71330494]
[1641249867817,0.00247964,3757.9,3757.8,2.71330494]
[1641249893024,0.0013428,3757.9,3757.8,2.71330494]
[1641249906213,0.0013428,3757.9,3757.8,5.165473]
[1641249906413,0.0013428,3757.9,3757.8,5.16559765]
[1641249906614,0.0013428,3757.9,3757.8,2.71330494]
[1641249909265,0.0013428,3757.9,3757.8,3.19113506]
[1641249911668,0.0013428,3757.9,3757.8,5.63547419]
[1641249911870,0.0013428,3757.9,3757.8,3.19113506]
[1641249917001,0.0013428,3757.9,3757.8,3.85637506]
[1641249917199,0.0013428,3757.9,3757.8,4.24637506]
[1641249917404,0.0013428,3757.9,3757.8,19.84637506]
[1641249918902,5.0,3758.0,3757.8,19.84637506]
[1641249918903,0.8524428,3758.0,3757.9,18.7]
[1641249919200,0.85414807,3758.0,3757.9,19.09]
[1641249919400,0.0567,3759.7,3758.6,0.6651]
[1641249919602,0.0567,3759.7,3759.2,0.6651]
[1641249919800,1.83022,3760.6,3759.2,0.6651]
[1641249919801,0.00909477,3759.6,3759.2,0.6651]
[1641249920214,0.00852635,3759.5,3759.2,0.6651]
[1641249920622,0.66511,3759.8,3759.2,0.6651]
[1641249920623,0.00795793,3759.4,3759.2,0.6651]
[1641249920925,0.0073895,3759.3,3759.2,0.6651]
[1641249921624,0.0073895,3759.3,3758.9,1.33019]
[1641249922020,0.00682108,3759.2,3758.9,1.33019]
[1641249922421,0.00625265,3759.1,3758.9,1.33019]
[1641249922821,0.00568423,3759.0,3758.9,1.33019]
[1641249925173,0.00568423,3759.0,3758.8,2.57213]
[1641249925568,0.00511581,3758.9,3758.8,2.57213]
[1641249929432,0.0061557,3758.9,3758.8,2.58543176]
[1641249929633,0.0061557,3758.9,3758.8,19.51546176]
[1641249929833,0.0061557,3758.9,3758.8,19.75437682]
[1641249930033,0.0061557,3758.9,3758.8,19.99329188]
[1641249931467,0.0061557,3758.9,3758.8,20.38329188]
[1641249932672,0.0061557,3758.9,3758.8,23.08329188]
[1641249932876,6.66763027,3760.9,3758.8,23.08329188]
[1641249932877,0.97306928,3761.1,3758.9,15.6009443]
[1641249933182,0.01080004,3760.8,3760.5,0.6647874]
[1641249933572,0.97306928,3761.1,3760.5,0.6647874]
[1641249933573,0.01023162,3760.7,3760.5,0.6647874]
[1641249933974,0.0096632,3760.6,3760.5,2.6591074]
[1641249940171,0.0096632,3760.6,3760.5,5.22240332]
[1641249940571,0.01066656,3760.6,3760.5,5.22240332]
[1641249941173,0.01066656,3760.6,3760.5,20.82240332]
[1641249941373,0.01066656,3760.6,3760.5,21.21240332]
[1641249942173,0.01066656,3760.6,3760.5,23.91240332]
[1641249942372,0.06531861,3761.1,3760.7,15.6]
[1641249942621,0.06531861,3761.1,3761.0,0.66463]
[1641249943220,5.7936,3762.4,3761.0,0.66463]
[1641249943425,5.7936,3762.4,3761.5,1.32926]
[1641249943627,0.00909477,3762.2,3761.5,1.32926]
[1641249943822,0.06544881,3761.7,3761.5,1.9938429]
[1641249944222,0.00568423,3761.6,3761.5,1.9938429]
[1641249945421,0.00568423,3761.6,3761.5,2.23275796]
[1641249945621,0.00568423,3761.6,3761.5,2.47167302]
[1641249946471,0.00568423,3761.6,3761.5,18.07167302]
[1641249946875,0.00568423,3761.6,3761.5,2.47167302]
[1641249949679,0.00568423,3761.6,3761.5,3.80068302]
[1641249950314,0.00568423,3761.6,3761.5,19.40068302]
[1641249950720,0.0576,3763.3,3761.6,3.45889867]
[1641249950914,0.0576,3763.3,3761.9,0.6645]
[1641249951116,0.00625266,3762.7,3762.0,0.6645085]
[1641249951518,0.0576,3763.3,3762.6,0.47783012]
[1641249951716,0.3,3763.4,3762.6,0.47783012]
[1641249951917,0.00909478,3763.2,3762.6,0.47783012]
[1641249952318,0.00852635,3763.1,3762.6,0.47783012]
[1641249952617,0.00795793,3763.0,3762.6,0.47783012]
[1641249953021,0.00738951,3762.9,3762.6,0.47783012]
[1641249953223,0.00738951,3762.9,3762.6,3.17783012]
[1641249953422,0.00682108,3762.8,3762.6,3.17783012]
[1641249953863,0.00625266,3762.7,3762.6,3.17783012]
[1641249956468,0.00625266,3762.7,3762.6,2.7]
[1641249956867,0.00625266,3762.7,3762.6,3.17783012]
[1641249960526,0.00625266,3762.7,3762.6,3.28318912]
[1641249962172,0.00625266,3762.7,3762.6,3.29647745]
[1641249962569,0.00718616,3762.7,3762.6,3.29647745]
[1641249962773,0.00718616,3762.7,3762.6,5.78194249]
[1641249962975,0.00718616,3762.7,3762.6,3.29647745]
[1641249963178,0.00718616,3762.7,3762.6,5.77960885]
[1641249963375,0.00718616,3762.7,3762.6,3.29647745]
[1641249964576,0.00718616,3762.7,3762.6,5.76890445]
[1641249964777,0.00718616,3762.7,3762.6,3.29647745]
[1641249964976,0.00718616,3762.7,3762.6,5.80093826]
[1641249965225,0.00718616,3762.7,3762.6,21.55758338]
[1641249966930,0.00718616,3762.7,3762.6,18.89647745]
[1641249977072,0.06544574,3763.3,3763.0,0.6643548]
[1641249977073,0.06368172,3763.3,3763.0,0.6643548]
[1641249977674,0.06368172,3763.3,3763.0,1.14218492]
[1641249977872,0.66436,3764.2,3763.0,1.14218492]
[1641249978273,0.00795793,3764.1,3763.0,1.14218492]
[1641249978675,0.0073895,3764.0,3763.0,1.14218492]
[1641249979074,0.00682108,3763.9,3763.0,1.14218492]
[1641249979474,0.00625266,3763.8,3763.0,1.14218492]
[1641249979876,0.00568423,3763.7,3763.0,1.14218492]
[1641249980326,0.00511581,3763.6,3763.0,1.14218492]
[1641249980728,0.00454739,3763.5,3763.0,1.14218492]
[1641249981128,0.00397896,3763.4,3763.0,1.14218492]
[1641249981632,0.00341054,3763.3,3763.0,1.14218492]
[1641249982032,0.00284212,3763.2,3763.0,1.14218492]
[1641249982433,0.00227369,3763.1,3763.0,1.14218492]
[1641249982832,0.00227369,3763.1,3763.0,0.6643548]
[1641249983033,0.00227369,3763.1,3763.0,1.14218492]
[1641249984070,0.00315055,3763.1,3763.0,1.15547183]
[1641249991253,0.00315055,3763.1,3763.0,0.49111703]
[1641249991686,3.05315055,3763.1,3763.0,0.49111703]
[1641249994091,7.17110048,3763.1,3763.0,0.49111703]
[1641249994789,3.05,3763.0,3762.6,2.76514816]
[1641249994989,3.15608305,3762.9,3762.6,2.76514816]
[1641249995234,4.4219899,3762.9,3762.6,2.7]
[1641249995433,1.26590685,3762.9,3762.6,2.7]
[1641249996435,4.27659027,3762.7,3762.6,2.7]
[1641249998437,0.66476,3762.7,3762.6,2.7]
[1641249998636,3.66476,3762.7,3762.6,2.7]
[1641250000087,0.66476,3762.7,3762.6,2.7]
[1641250000487,0.66476,3762.7,3761.3,0.06514867]
[1641250000488,2.35476,3762.7,3761.3,0.06514867]
[1641250000687,0.66479,3762.6,3761.3,0.06514867]
[1641250000892,1.35479,3762.6,3761.4,0.00738951]
[1641250001689,1.35479,3762.6,3761.4,0.105358]
[1641250002090,3.60383254,3762.3,3761.5,0.00682108]
[1641250002290,4.65872254,3762.3,3761.5,0.00682108]
[1641250002490,2.3297754,3762.2,3761.5,0.00682108]
[1641250002734,0.39,3762.1,3761.5,0.00682108]
[1641250002933,0.39,3762.1,3761.5,2.70682108]
[1641250003136,15.99,3762.1,3761.5,2.70682108]
[1641250003334,0.39,3762.1,3761.6,0.00625266]
[1641250003538,0.3,3761.9,3761.6,0.00625266]
[1641250003734,0.39,3761.8,3761.6,0.00625266]
[1641250004136,0.99,3761.8,3761.6,0.00625266]
[1641250005335,1.65493,3761.8,3761.6,0.00625266]
[1641250005737,2.31986,3761.8,3761.6,0.00625266]
[1641250005936,3.15218831,3761.7,3761.6,0.00625266]
[1641250007583,3.45218831,3761.7,3761.6,0.00625266]
[1641250012033,0.30218831,3761.7,3761.6,0.00625266]
[1641250012433,2.45218831,3761.7,3761.6,0.00625266]
[1641250019733,2.15218831,3761.7,3761.6,0.00625266]
[1641250020735,2.45218831,3761.7,3761.6,0.00625266]
[1641250022183,3.1,3761.6,3761.5,2.70001066]
[1641250022387,3.81504,3761.4,3760.9,0.06515091]
[1641250022584,1.0,3761.3,3760.9,0.06515091]
[1641250022783,2.41504,3761.4,3761.0,0.00341054]
[1641250023183,3.15,3761.3,3759.8,2.61607318]
[1641250023386,0.39,3761.2,3759.8,2.61607318]
[1641250023584,1.35622685,3761.2,3759.9,0.00625266]
[1641250024183,16.95622685,3761.2,3759.9,0.00625266]
[1641250024388,0.6650916,3761.0,3759.9,0.00625266]
[1641250024584,0.39,3760.9,3759.9,0.00625266]
[1641250024783,0.69,3760.9,3759.9,0.00625266]
[1641250024982,1.69,3760.9,3759.9,0.00625266]
[1641250025232,0.69,3760.9,3759.9,0.00625266]
[1641250025432,1.69,3760.9,3759.9,0.00625266]
[1641250025836,1.3303,3760.8,3759.9,0.00625266]
[1641250026039,0.69,3760.7,3759.9,0.00625266]
[1641250026236,1.33029,3760.6,3759.9,0.00625266]
[1641250026637,2.63029,3760.6,3759.9,0.00625266]